Cogmind - Beta 17 @@@ ROGUE MODE // 2026.06.30 @ 19:07:38 Player: THN-L0C Result: Self-destructed Performance ------------- Evolutions (3) 1500 Regions Visited (8) 1600 Robots Destroyed (55) 275 Value Destroyed (1433) 1433 Prototype IDs (27) 540 Alien Tech Used (0) 0 Bonus (1639) 1639 TOTAL SCORE: 6987 Bonus ------- Follower Combat Kills 739 Entered Garrisons 400 Used RIF Installer 500 Cogmind --------- Core Integrity 652/700 Matter 300/300 Energy 89/800 System Corruption 0% Temperature Cool (9) Movement Hovering (118) Ox1 Location -7/Garrison Parts ------- > --- POWER (1) -------- Hybrid Deuterium Engine (fused) > --- PROPULSION (4) --- Airjet (fused) Airjet (fused) Makeshift Hover Unit (fused) > --- UTILITY (5) ------ High-capacity Storage Unit Seismic Detector Self-contained Transmogrifier > --- WEAPON (3) ------- Impact Mace > --- INVENTORY (20) --- Antimatter Reactor Antimatter Reactor Particle Reactor Cooled Gravmag System Improved Cooling System Compact Matter Pod (150) Advanced Weight Redist. System Improved Salvage Targeting Computer Damper Plating Graphene Brace Quantum Rifle Gauss Rifle Precision Assault Rifle Precision Assault Rifle Heavy Battle Rifle Advanced Assault Cannon Shrapnel Trap Peak State ------------ > --- POWER ------------ Antimatter Reactor > --- PROPULSION ------- Airjet Airjet Makeshift Hover Unit Makeshift Hover Unit > --- UTILITY ---------- Improved Cryofiber Web High-capacity Storage Unit Advanced Weight Redist. System Visual Processing Unit Self-contained Transmogrifier > --- WEAPON ----------- Impact Mace Greatsword > --- INVENTORY -------- Antimatter Reactor Particle Reactor Cooled Gravmag System Improved Cooling System Compact Matter Pod Seismic Detector Improved Salvage Targeting Computer Damper Plating Graphene Brace Quantum Rifle Gauss Rifle Precision Assault Rifle Precision Assault Rifle Heavy Battle Rifle Advanced Assault Cannon Shrapnel Trap [Rating: 65] Favorites ----------- Power Ion Engine Engine Ion Engine Power Core Hybrid Fission Core Reactor Antimatter Reactor Propulsion Compact Wheel Treads Light Treads Leg Aluminum Leg Wheel Compact Wheel Hover Unit Aerolev Unit Flight Unit Improved VTOL Module Utility High-capacity Storage Unit Device Seismic Detector Storage High-capacity Storage Unit Processor Visual Processing Unit Hackware Makeshift System Shield Protection Medium Armor Plating Weapon Assault Rifle Ballistic Gun Assault Rifle Ballistic Cannon Advanced Assault Cannon Launcher Improved Proton Missile Launcher Special Weapon Mining Laser Impact Weapon Heavy Mace Slashing Weapon Greatsword Build | -11 -10 -10 -8 -8 -7 -7 -7 -7 ------- Run | Yrd Mat Sub Mat Gar Fac Was Fac Gar Slots Evolved 6 | . . . 4 . 2 . . . Power . | . . . . . . . . . Propulsion 2 | . . . 1 . 1 . . . Utility 3 | . . . 2 . 1 . . . Weapon 1 | . . . 1 . . . . . Parts Attached 77 | 7 9 13 28 1 12 5 1 1 Power 12 | 1 1 2 3 . 2 3 . . Engine 8 | 1 1 2 3 . 1 . . . Core 1 | . . . . . 1 . . . Reactor 3 | . . . . . . 3 . . Propulsion 18 | 2 2 4 5 . 2 2 1 . Treads 2 | . 1 1 . . . . . . Leg 2 | 2 . . . . . . . . Wheel 8 | . 1 3 3 . 1 . . . Hover 6 | . . . 2 . 1 2 1 . Flight . | . . . . . . . . . Utility 22 | 2 5 3 8 . 3 . . 1 Device 6 | 1 1 . 3 . . . . 1 Storage 4 | 1 3 . . . . . . . Processor 1 | . . . . . 1 . . . Hackware 2 | . . . 2 . . . . . Protection 9 | . 1 3 3 . 2 . . . Artifact . | . . . . . . . . . Weapon 25 | 2 1 4 12 1 5 . . . Energy Gun . | . . . . . . . . . Energy Cannon . | . . . . . . . . . Ballistic Gun 14 | 2 . 3 9 . . . . . Ballistic Cannon 2 | . . . . . 2 . . . Launcher 3 | . 1 . 1 1 . . . . Special Weapon 2 | . . 1 1 . . . . . Impact Weapon 4 | . . . 1 . 3 . . . Slashing Weapon . | . . . . . . . . . Piercing Weapon . | . . . . . . . . . Special Melee Weapon . | . . . . . . . . . Unidentified Prototypes 8 | . . . 6 . 1 1 . . Parts Lost 12 | . . 7 2 . . . . 3 Power 1 | . . 1 . . . . . . Propulsion 4 | . . 3 . . . . . 1 Utility 4 | . . 1 2 . . . . 1 Weapon 3 | . . 2 . . . . . 1 Highest Loss Streak 5 | . . 5 1 . . . . 3 To Critical Strikes . | . . . . . . . . . Average Backups 16 | . 13 19 17 18 17 17 15 15 Power 1 | . 1 1 1 2 2 2 2 2 Propulsion 1 | . . . 2 4 3 2 1 1 Utility 6 | . 5 7 6 6 6 6 6 6 Weapon 6 | . 6 8 5 4 5 5 5 5 Tool/Special . | . . . . . . . . . Unused Backups 43 | . 5 7 12 1 2 5 . 11 Power 8 | . . . 3 . 2 1 . 2 Propulsion 1 | . . . 1 . . . . . Utility 17 | . 1 2 5 1 . 3 . 5 Weapon 16 | . 3 5 3 . . 1 . 4 Tool/Special 1 | . 1 . . . . . . . Average Slot Usage (%) 97 | . 99 99 97 99 94 92 84 88 Engine 8 | . 14 13 9 2 2 . . 1 Core 1 | . . . . 6 4 1 . . Treads 6 | . 8 13 . 5 . . . . Leg 2 | . 11 . . . . . . . Wheel 13 | . 8 14 25 21 9 . . . Hover 4 | . . . . . 13 28 23 29 Device 11 | . 7 10 10 9 15 23 23 22 Storage 10 | . 14 14 9 9 7 7 7 7 Processor 1 | . . . . . 4 7 7 5 Hackware 3 | . . . 11 9 2 . . . Protection 4 | . 6 3 4 7 6 . . . Ballistic Gun 18 | . 27 24 24 17 . . . . Ballistic Cannon 1 | . . . . . 4 7 7 4 Launcher 1 | . . 1 . 1 12 1 . . Impact Weapon 2 | . . . 1 8 4 1 . 2 Peak Build Rating 65 | 7 12 16 43 52 61 63 63 65 Average Rating 30 | 6 9 12 34 46 55 60 62 62 On Entrance 34 | . 7 12 16 40 52 55 63 63 Avg Prop Armor Cover (%) 9 | . 9 11 4 11 2 . . . Naked Turns . | . . . . . . . . . Heaviest Build 88 | 15 58 58 67 69 88 76 69 69 Greatest Support 56 | 20 20 40 48 48 56 37 37 49 Greatest Overweight (x) 3 | 1 3 3 3 2 3 2 1 1 Average Overweight (x) 1 | . 1 2 1 1 1 1 1 . Largest Inventory Capacity 20 | 8 20 20 20 20 20 20 20 20 Average Capacity 18 | 7 14 20 20 20 20 20 20 20 Most Carried 20 | 2 20 20 20 20 20 20 20 20 Average Carried 18 | . 13 19 19 19 19 19 19 19 Final Capacity 20 | 8 20 20 20 20 20 20 20 20 Final Carried 20 | 2 20 18 20 20 20 20 19 20 Transmogrified Parts 38 | . . . . 10 16 6 . 6 Integrity Recovered 193 | . . . . 113 48 25 . 7 Class Distribution -------------------- 65% | Mutant 17% | Commander-Mutant 5% | Commander-Tank 3% | Gunner Dominant Class ---------------- Mutant | -10/Materials Mutant | -10/Subcaves Gunner | -8/Materials Commander-Mutant | -8/Garrison Commander-Mutant | -7/Factory Mutant | -7/Waste Mutant | -7/Factory Mutant | -7/Garrison Resources | -11 -10 -10 -8 -8 -7 -7 -7 -7 ----------- Run | Yrd Mat Sub Mat Gar Fac Was Fac Gar Matter Collected 3053 | 324 215 774 1023 409 195 60 10 43 Remotely . | . . . . . . . . . Salvage Created 2033 | 139 389 260 968 127 29 . . 121 Parts 121 | 8 38 13 56 1 1 . . 4 Haulers Intercepted 5 | . 1 . 4 . . . . . Recyclers Shooed 1 | . . . 1 . . . . . Parts Field Recycled . | . . . . . . . . . Retrieved Matter . | . . . . . . . . . Parts Self-Destructed 5 | . . 5 . . . . . . Prevented . | . . . . . . . . . Parts Restored . | . . . . . . . . . Kills | -11 -10 -10 -8 -8 -7 -7 -7 -7 ------- Run | Yrd Mat Sub Mat Gar Fac Was Fac Gar Combat Hostiles Destroyed 41 | . 11 5 21 . 1 . . 3 Melee 3 | . . . . . . . . 3 Guns 36 | . 11 5 20 . . . . . AOE 1 | . . . . . 1 . . . Classes Destroyed 11 | 2 5 2 2 . . . . . Tunneler 3 | 3 . . . . . . . . Hauler 5 | . 1 . 4 . . . . . Recycler 1 | 1 . . . . . . . . Operator 2 | . 1 . 1 . . . . . Watcher 3 | . 2 . 1 . . . . . Swarmer 17 | . 6 . 10 . 1 . . . Grunt 11 | . 5 . 5 . . . . 1 Duelist 2 | . . . 2 . . . . . Sentry 6 | . . . 4 . . . . 2 Artisan 1 | . . 1 . . . . . . Subdweller 5 | . . 5 . . . . . . Best Kill Streak 4 | 4 4 1 4 . 1 . . 2 Combat Bots Only 4 | . 4 1 4 . 1 . . 2 Max Kills in Single Turn 1 | 1 1 1 1 . 1 . . 1 Gunslinging . | . . . . . . . . . Exploded 1 | . . . . . 1 . . . Melee 1 | . . . . . . . . 1 Uniques/NPCs Destroyed . | . . . . . . . . . Combat | -11 -10 -10 -8 -8 -7 -7 -7 -7 -------- Run | Yrd Mat Sub Mat Gar Fac Was Fac Gar Hostile Shots Fired 234 | . 45 55 72 . 19 . 9 34 Missed 61 | . 10 8 19 . 9 . 4 11 Hits 173 | . 35 47 53 . 10 . 5 23 Melee 4 | . . . 4 . . . . . Projectile 169 | . 35 47 49 . 10 . 5 23 Critical Strikes 8 | . . 2 3 . 2 . . 1 Damage Taken 2645 | . 365 1070 674 . 127 . 39 370 Core 396 | . 70 135 143 . 15 . 15 18 Absorbed by Shields . | . . . . . . . . . Regen/Repaired (Parts) 26 | . 26 . . . . . . . Core Remaining (%) 64 | 100 . 18 . 74 . . . . Volleys Fired 169 | 9 36 62 53 1 5 . . 3 Largest 3 | 2 2 2 3 1 1 . . 1 Hottest 100 | 40 40 100 84 28 43 . . 40 Shots Fired 350 | 18 71 101 149 3 5 . . 3 Gun 325 | 18 70 85 149 3 . . . . Cannon 6 | . . . . . 3 . . 3 Launcher 3 | . 1 . . . 2 . . . Special 16 | . . 16 . . . . . . Kinetic 331 | 18 70 85 149 3 3 . . 3 Thermal 16 | . . 16 . . . . . . Explosive 1 | . 1 . . . . . . . Electromagnetic 2 | . . . . . 2 . . . Robot Hit Streak 52 | 3 6 52 24 5 7 . . 8 Robot Miss Streak 5 | 2 5 2 5 . . . . 1 Penetration Max . | . . . . . . . . . Secondary Targets 3 | . 1 . 2 . . . . . Max Gunslinging Chain 1 | . 1 . 1 . . . . . Shots Hit Robots 238 | 8 42 75 93 12 2 . . 6 Core Hits 86 | 5 22 13 36 2 4 . . 4 Critical Kills 1 | . . . 1 . . . . . Critical Parts Destroyed 5 | . . . 1 4 . . . . Critical Strikes 7 | . . 1 2 4 . . . . Destroy 1 | . . 1 . . . . . . Smash 6 | . . . 2 4 . . . . Melee Attacks 46 | . . . 13 10 5 . 4 14 Impact 35 | . . . 13 10 5 . . 7 Slashing 11 | . . . . . . . 4 7 Piercing . | . . . . . . . . . Sneak Attacks 2 | . . . 2 . . . . . Combat Hostiles . | . . . . . . . . . Follow-up Attacks 1 | . . . . . . . . 1 Damage Inflicted 4805 | 109 520 968 1874 918 160 . . 256 Guns 3212 | 109 520 968 1577 38 . . . . Cannons 47 | . . . . . . . . 47 Explosions 160 | . . . . . 160 . . . Melee 1386 | . . . 297 880 . . . 209 Ramming . | . . . . . . . . . Kinetic 3259 | 109 520 968 1577 38 . . . 47 Thermal . | . . . . . . . . . Explosive . | . . . . . . . . . Electromagnetic 160 | . . . . . 160 . . . Impact 1230 | . . . 297 880 . . . 53 Slashing 156 | . . . . . . . . 156 Piercing . | . . . . . . . . . Highest Corruption 5 | . . . 5 5 . . . . Average Corruption 4 | . . . 3 5 . . . . Corruption Purged . | . . . . . . . . . Corruption Blocked . | . . . . . . . . . Effects 35 | . . . 3 32 . . . . Message Errors 10 | . . . . 10 . . . . Matter Fused 10 | . . . 3 7 . . . . Heat Flow Errors 2 | . . . . 2 . . . . Energy Discharges 4 | . . . . 4 . . . . Parts Fused 1 | . . . . 1 . . . . Data Loss (minor) 5 | . . . . 5 . . . . Misfires 2 | . . . . 2 . . . . Alerts 1 | . . . . 1 . . . . Overload Shots . | . . . . . . . . . Overflow Damage 476 | . . . 111 365 . . . . Projectiles . | . . . . . . . . . Explosions . | . . . . . . . . . Melee 476 | . . . 111 365 . . . . Knockbacks 1 | . . . 1 . . . . . Impact 1 | . . . 1 . . . . . Kinetic . | . . . . . . . . . Secondary . | . . . . . . . . . Self-Inflicted Damage . | . . . . . . . . . Shots . | . . . . . . . . . Rammed 1 | . 1 . . . . . . . Targets Rammed 1 | . 1 . . . . . . . Kicked . | . . . . . . . . . Crushed . | . . . . . . . . . Highest Temperature 270 | . 4 . 213 270 4 . . 11 Average Temperature 53 | . 2 . 51 120 2 . . 11 Received Heat Transfer 549 | . 141 48 162 . 6 . 12 180 Siege Activations . | . . . . . . . . . Martial Activations . | . . . . . . . . . Shielding Activations . | . . . . . . . . . Robots Disrupted . | . . . . . . . . . Combat Hostiles . | . . . . . . . . . Robots Corrupted 3 | . . . 1 2 . . . . Combat Hostiles 3 | . . . 1 2 . . . . Parts Fried 6 | . . . 4 2 . . . . Impact Corruptions 12 | . . . 3 9 . . . . Robots Melted . | . . . . . . . . . Combat Hostiles . | . . . . . . . . . Parts Melted 1 | . . 1 . . . . . . Heat Transferred . | . . . . . . . . . Parts Sabotaged . | . . . . . . . . . Parts Stolen . | . . . . . . . . . Parts Stripped . | . . . . . . . . . Power Chain Reactions 1 | . . . 1 . . . . . Alert | -11 -10 -10 -8 -8 -7 -7 -7 -7 ------- Run | Yrd Mat Sub Mat Gar Fac Was Fac Gar Maximum Alert Level 2 | . . . 1 2 1 . 1 1 Low Security (%) 68 | 100 100 . 96 3 49 100 92 55 Level 1 26 | . . . 3 73 50 . 7 44 Level 2 4 | . . . . 23 . . . . Level 3 . | . . . . . . . . . Level 4 . | . . . . . . . . . Level 5 . | . . . . . . . . . High Security . | . . . . . . . . . Max Security . | . . . . . . . . . Peak Influence 591 | 5 106 . 209 591 355 122 222 244 Initial 310 | . . . . 134 310 122 . 65 Average 140 | . 20 . 88 348 209 54 68 152 Influence Increases 2732 | 20 420 . 635 457 471 2 428 299 Destroy 0b10 Robot/C 1140 | . 220 . 420 . 180 . 140 180 Destroy 0b10 Robot/NC 105 | 20 20 . 30 10 15 . 10 . Destroy Leader 282 | . 56 . 100 . 62 . 54 10 Allied During Kill 333 | . . . . 3 94 . 182 54 Successful Hack 116 | . 24 . . 44 34 . 14 . Select Force Hacks 30 | . 30 . . . . . . . Disable Machine 105 | . . . 60 . 15 . 15 15 Anti-Garrison Action 400 | . . . . 400 . . . . Destroy Structure 71 | . 10 . 10 . 11 2 13 25 Lose Combat Pursuer 150 | . 60 . 15 . 60 . . 15 Influence Decreases 2508 | 20 335 85 428 73 713 351 334 169 Entered New Map 651 | . . 41 . 73 281 227 . 29 Time Decay 1390 | 20 308 44 408 . 392 124 94 . Lost Part 50 | . . . 20 . . . . 30 Lost Ally 390 | . . . . . 40 . 240 110 Purge Threat 27 | . 27 . . . . . . . Squads Dispatched 11 | . 4 . 2 . 3 . 2 . Investigation 3 | . 2 . . . 1 . . . Extermination 2 | . . . . . 2 . . . Reinforcement 5 | . 2 . 1 . . . 2 . Assault . | . . . . . . . . . Garrison 1 | . . . 1 . . . . . Intercept . | . . . . . . . . . Searches Triggered . | . . . . . . . . . Construction Impeded . | . . . . . . . . . Haulers Reinforced . | . . . . . . . . . Active Scanning Responses . | . . . . . . . . . Cargo Convoy Interrupts . | . . . . . . . . . Stealth | -11 -10 -10 -8 -8 -7 -7 -7 -7 --------- Run | Yrd Mat Sub Mat Gar Fac Was Fac Gar Distress Signals 3 | . 2 . . . 1 . . . Communications Jammed . | . . . . . . . . . Distress Signals . | . . . . . . . . . Times Spotted 105 | . 29 6 38 . 11 . 3 18 Peak Tracking Total 10 | . 5 2 5 . 5 . 2 10 Tactical Retreats 7 | . 3 . 1 . 2 . . 1 Traps | -11 -10 -10 -8 -8 -7 -7 -7 -7 ------- Run | Yrd Mat Sub Mat Gar Fac Was Fac Gar Traps Triggered 16 | . 1 1 4 3 1 . 1 5 Indirectly . | . . . . . . . . . Trap Hack Attempts . | . . . . . . . . . Triggered . | . . . . . . . . . Disarmed 2 | . 2 . . . . . . . Reprogrammed . | . . . . . . . . . Reused . | . . . . . . . . . Traps Extracted . | . . . . . . . . . Installed . | . . . . . . . . . Triggered . | . . . . . . . . . Most Traps Carried 1 | . . 1 1 1 1 1 1 1 Machines | -11 -10 -10 -8 -8 -7 -7 -7 -7 ---------- Run | Yrd Mat Sub Mat Gar Fac Was Fac Gar Machines Disabled 8 | . . 1 4 . 1 . 1 1 Max in Single Turn 2 | . . 1 2 . . . . . Machines Repaired . | . . . . . . . . . Machines Dismantled . | . . . . . . . . . Machines Sabotaged . | . . . . . . . . . Overloaded Fab Kills . | . . . . . . . . . Hacking | -11 -10 -10 -8 -8 -7 -7 -7 -7 --------- Run | Yrd Mat Sub Mat Gar Fac Was Fac Gar Machines Accessed 27 | . 8 2 6 4 4 . 3 . Terminals 20 | . 6 . 4 4 4 . 2 . Fabricators . | . . . . . . . . . Repair Stations 1 | . 1 . . . . . . . Recycling Units 1 | . 1 . . . . . . . Scanalyzers 1 | . . . 1 . . . . . Garrison Access 2 | . . . 1 . . . 1 . Total Hacks 71 | . 27 5 12 8 14 . 5 . Successful 39 | . 18 5 7 3 4 . 2 . Failed 32 | . 9 . 5 5 10 . 3 . Catastrophic 5 | . . . . . 5 . . . Database Lockouts . | . . . . . . . . . Manual 42 | . 17 . 7 . 14 . 4 . Terminals 58 | . 23 . 9 8 14 . 4 . Fabricators . | . . . . . . . . . Repair Stations 3 | . 3 . . . . . . . Recycling Units 1 | . 1 . . . . . . . Scanalyzers 2 | . . . 2 . . . . . Garrison Access 2 | . . . 1 . . . 1 . Terminal Hacks 17 | . 6 5 3 3 . . . . Record 4 | . . 4 . . . . . . Prototype ID Bank 1 | . . . 1 . . . . . Emergency Access Points 1 | . 1 . . . . . . . Garrison Index 1 | . . . 1 . . . . . Unreport Threat 1 | . 1 . . . . . . . Locate Traps 1 | . 1 . . . . . . . Disarm Traps 1 | . 1 . . . . . . . Zone Layout 3 | . 2 . 1 . . . . . Garrison Registry 1 | . . . . 1 . . . . Patrol Navigation 1 | . . . . 1 . . . . Security Stations 1 | . . . . 1 . . . . Proto ID Catalog 1 | . . 1 . . . . . . Fabricator Hacks . | . . . . . . . . . Repair Station Hacks 2 | . 2 . . . . . . . Scan Component 1 | . 1 . . . . . . . Repair 1 | . 1 . . . . . . . Recycling Unit Hacks . | . . . . . . . . . Scanalyzer 2 | . . . 2 . . . . . Retrieve Study 2 | . . . 2 . . . . . Garrison Access Hacks 2 | . . . 1 . . . 1 . Unlock Access 2 | . . . 1 . . . 1 . Unauthorized Hacks 16 | . 10 . 1 . 4 . 1 . Terminals 15 | . 9 . 1 . 4 . 1 . Botnet 9 | . 3 . 1 . 4 . 1 . Operators 1 | . 1 . . . . . . . Skim 5 | . 5 . . . . . . . Fabricators . | . . . . . . . . . Repair Stations . | . . . . . . . . . Recycling Units 1 | . 1 . . . . . . . Tunnel 1 | . 1 . . . . . . . Scanalyzers . | . . . . . . . . . Garrison Access . | . . . . . . . . . Data Cores Recovered 1 | . 1 . . . . . . . Used 1 | . 1 . . . . . . . Hacking Detections 17 | . 7 . 1 2 4 . 3 . Full Trace Events . | . . . . . . . . . Feedback Events . | . . . . . . . . . Feedback Blocked . | . . . . . . . . . Robot Schematics Acquired . | . . . . . . . . . Robots Built . | . . . . . . . . . Authchips . | . . . . . . . . . Time . | . . . . . . . . . Total Robot Build Rating . | . . . . . . . . . Part Schematics Acquired . | . . . . . . . . . Parts Built . | . . . . . . . . . Authchips . | . . . . . . . . . Time . | . . . . . . . . . Total Part Build Rating . | . . . . . . . . . Part Studies Acquired 2 | . . . 2 . . . . . Parts Repaired 1 | . 1 . . . . . . . Time 26 | . 26 . . . . . . . Parts Recycled . | . . . . . . . . . Recycled Matter . | . . . . . . . . . Retrieved Matter . | . . . . . . . . . Retrieved Components . | . . . . . . . . . Parts Scanalyzed . | . . . . . . . . . Part Schematics Acquired . | . . . . . . . . . Parts Damaged . | . . . . . . . . . Bothacking | -11 -10 -10 -8 -8 -7 -7 -7 -7 ------------ Run | Yrd Mat Sub Mat Gar Fac Was Fac Gar Used RIF Installer 1 | . . . . 1 . . . . Robots Hacked . | . . . . . . . . . Non-combat . | . . . . . . . . . Combat . | . . . . . . . . . Robot Hacks Applied . | . . . . . . . . . Relay Couplers Released . | . . . . . . . . . Fabnet Peak Effective % . | . . . . . . . . . Robots Rewired 7 | . . . . 6 1 . . . Allies Hacked . | . . . . . . . . . Hacks Repelled . | . . . . . . . . . Allies | -11 -10 -10 -8 -8 -7 -7 -7 -7 -------- Run | Yrd Mat Sub Mat Gar Fac Was Fac Gar Total Allies 27 | . . . . 6 1 20 . . Largest Group 22 | . . . . 6 6 22 22 9 Highest-Rated Group 551 | . . . . 154 154 551 551 232 Highest-Rated Ally 39 | . . . . 39 39 35 35 35 Total Orders . | . . . . . . . . . Ally Attacks 172 | . . . . . 56 3 83 30 Total Damage 3162 | . . . . . 868 93 1169 1032 Kills 31 | . . . . . 12 1 10 8 Allies Corrupted . | . . . . . . . . . Allies Melted . | . . . . . . . . . Intel | -11 -10 -10 -8 -8 -7 -7 -7 -7 ------- Run | Yrd Mat Sub Mat Gar Fac Was Fac Gar Active Infowar (turns) 4822 | 68 810 1839 505 106 536 304 311 343 Optics 1471 | . . . . . 536 304 311 320 Terrain 966 | . 271 678 17 . . . . . Seismic 3365 | 68 539 1161 504 . 147 304 311 331 Jamming 107 | . . . 1 106 . . . . Robot Analysis Total . | . . . . . . . . . Derelict Logs Recovered 2 | . . 2 . . . . . . Drone Launches . | . . . . . . . . . Drone Recoveries . | . . . . . . . . . Exploration | -11 -10 -10 -8 -8 -7 -7 -7 -7 ------------- Run | Yrd Mat Sub Mat Gar Fac Was Fac Gar Turns Passed 8620 | 128 1593 2448 1255 1232 928 304 311 421 Spaces Moved 4849 | 73 725 1052 725 915 669 219 264 207 Core 4 | 4 . . . . . . . . Treads 14 | . 1 13 . . . . . . Legs 459 | 69 390 . . . . . . . Wheels 3406 | . 334 1039 725 915 393 . . . Hover 966 | . . . . . 276 219 264 207 Flight . | . . . . . . . . . Fastest Speed 50 | 50 115 107 110 115 103 97 101 53 Average Speed 124 | 116 128 141 115 118 126 115 101 115 Slowest Speed 320 | 120 320 250 125 125 163 160 104 118 Overloaded Moves . | . . . . . . . . . Propulsion Burnouts . | . . . . . . . . . Robots Hopped . | . . . . . . . . . Potential Cave-ins . | . . . . . . . . . Cave-ins Triggered . | . . . . . . . . . Exploration Rate (%) 47 | 4 89 42 51 95 20 91 8 31 Regions Visited 8 Branch Regions 1 Pre-discovered Areas 2 | . 1 1 . . . . . . Known Exits Taken 4 | . 1 1 1 . . . 1 . Unknown Exits Taken 1 | 1 . . . . . . . . Scrap Searched 9 | . . 9 . . . . . . Spaces Dug 15 | . . . 7 . 4 . 4 . Terrain Destroyed 24 | . 9 . 7 . 4 . 4 . Melee 13 | . . . 7 . 2 . 4 . Projectile 2 | . . . . . 2 . . . AOE 9 | . 9 . . . . . . . Terrain Rammed . | . . . . . . . . . Walls Destroyed . | . . . . . . . . . Machines Disabled . | . . . . . . . . . Actions | -11 -10 -10 -8 -8 -7 -7 -7 -7 --------- Run | Yrd Mat Sub Mat Gar Fac Was Fac Gar Total 7032 | 94 1317 1872 1034 1044 731 277 300 363 Wait 1466 | 4 507 697 123 8 18 39 27 43 Move 4843 | 72 724 1051 725 913 669 218 264 207 Hop . | . . . . . . . . . Pick Up 85 | 2 24 16 27 2 5 5 2 2 Fast Attach 14 | 7 1 1 2 . 3 . . . Attach 13 | . . 6 5 1 . . 1 . Detach 5 | . . . 1 . 2 . . 2 Swap 110 | . 14 24 49 3 12 5 . 3 Drop 74 | . 10 15 31 1 4 10 2 1 Fire 169 | 9 36 62 53 1 5 . . 3 Melee 44 | . . . 13 10 5 . 4 12 Ram . | . . . . . . . . . Kick . | . . . . . . . . . Crush 1 | . 1 . . . . . . . Escape Stasis 90 | . . . . . . . . 90 Rewire 113 | . . . . 105 8 . . . Trap . | . . . . . . . . . Miscellaneous 5 | . . . 5 . . . . . Route ------- -11/Scrapyard -10/Materials (discovered 6 exits: *Mat x3 / [*Min x2] / *Sub) -10/Subcaves (discovered 3 exits: *Mat / Rec / [*Scr]) -8/Materials (discovered 2 exits: *Fac / Gar) -8/Garrison (discovered 3 exits: *Fac x3) -7/Factory -7/Waste -7/Factory -7/Garrison History --------- Turn | Location | Event 26 | -11/Scrapyard | Discovered new exit (range 15) 129 | -11/Scrapyard | Entered Materials 309 | -10/Materials | Build established: Mutant 384 | -10/Materials | Discovered new exit (range 12) 481 | -10/Materials | Repaired Assault Rifle 542 | -10/Materials | Discovered new exit (range 14) 571 | -10/Materials | Discovered new exit (range 14) 1016 | -10/Materials | Discovered new exit (range 3) 1272 | -10/Materials | Identified exit to Subcaves 1272 | -10/Materials | Identified exit to Materials 1349 | -10/Materials | Learned location of 2 exits from Subcaves 1414 | -10/Materials | Learned 2 Storage zone layouts 1508 | -10/Materials | Loaded intel: 5 trap records 1561 | -10/Materials | Loaded intel: 8 terminal locations 1624 | -10/Materials | Learned 4 Subcaves zone layouts 1722 | -10/Materials | Entered Subcaves 1723 | -10/Subcaves | Approached by a straggling Scientist 1723 | -10/Subcaves | Identified exit to Recycling 1723 | -10/Subcaves | Identified exit to Materials 1817 | -10/Subcaves | Learned location of Zion (-6) 1817 | -10/Subcaves | Met a Zionite searching for "candidates" 1848 | -10/Subcaves | Scientist uncovered a shortcut to Scraptown 1926 | -10/Subcaves | Learned 2 Materials zone layouts 2193 | -10/Subcaves | Visited Clippyterm 2197 | -10/Subcaves | Learned Factory garrison access intel 2973 | -10/Subcaves | Shifting Twisted Machinery released Sub. Shrapnel Launcher 2974 | -10/Subcaves | Shifting Twisted Machinery released Sub. Power Source 3033 | -10/Subcaves | Ambushed by Subdweller buried in earth 3033 | -10/Subcaves | Ambushed by Subdweller buried in earth 3762 | -10/Subcaves | Learned Materials non-interactive machine intel 3805 | -10/Subcaves | Visited 4L-MR0's lab 3819 | -10/Subcaves | Found Prototype Device 3841 | -10/Subcaves | Found Tower Shield 3982 | -10/Subcaves | Ambushed by angry Subdweller bent on revenge 4002 | -10/Subcaves | Core integrity fell below 50% 4018 | -10/Subcaves | Core integrity fell below 20% 4056 | -10/Subcaves | Lost 5 parts (3n1u1w) 4170 | -10/Subcaves | Entered Materials 4170 | -8/Materials | Evolved 4 slots: Propulsion x1, Utility x2, Weapon x1 4172 | -8/Materials | Loaded intel: 42 non-interactive machine locations 5103 | -8/Materials | Discovered new exit (range 7) 5162 | -8/Materials | Build established: Gunner 5332 | -8/Materials | Identified Sfc. Transmogrifier 5356 | -8/Materials | Garrison activated, responded to threat 5425 | -8/Materials | Identified exit to Garrison 5425 | -8/Materials | Entered Garrison 5425 | -8/Garrison | Discovered recently destroyed garrison 5492 | -8/Garrison | Build established: Mutant 5672 | -8/Garrison | Learned Factory security intel 5712 | -8/Garrison | Discovered new exit (range 9) 5876 | -8/Garrison | Discovered new exit (range 13) 5948 | -8/Garrison | Build established: Commander-Mutant 6233 | -8/Garrison | Discovered new exit (range 10) 6346 | -8/Garrison | Installed Relay Interface Framework 6521 | -8/Garrison | Discovered new exit (range 71) 6521 | -8/Garrison | Discovered new exit (range 31) 6521 | -8/Garrison | Discovered new exit (range 80) 6657 | -8/Garrison | Entered Factory 6657 | -7/Factory | Accompanied by 6 allies 6657 | -7/Factory | Evolved 2 slots: Propulsion x1, Utility x1 6659 | -7/Factory | Loaded intel: 1 garrison access location 6931 | -7/Factory | Build established: Commander-Tank 7148 | -7/Factory | Discovered new exit (range 12) 7378 | -7/Factory | Build established: Commander-Mutant 7585 | -7/Factory | Sucked down chute 7585 | -7/Factory | Entered Waste 7586 | -7/Waste | Joined by Warlord forces that had cleared the area 7625 | -7/Waste | A Compactor rumbled back to life 7625 | -7/Waste | Allies destroyed C-40 Crusher 7630 | -7/Waste | 2 allies followed down the chute 7810 | -7/Waste | Found Damper Plating 7825 | -7/Waste | Discovered new exit (range 12) 7883 | -7/Waste | Build established: Mutant 7889 | -7/Waste | Entered Factory 7889 | -7/Factory | Accompanied by 22 allies 8124 | -7/Factory | Lost 7 allies 8179 | -7/Factory | Lost 3 allies 8199 | -7/Factory | Identified exit to Garrison 8200 | -7/Factory | Entered Garrison 8200 | -7/Garrison | Accompanied by 9 allies 8274 | -7/Garrison | Triggered checkpoint 8404 | -7/Garrison | Triggered checkpoint 8404 | -7/Garrison | Triggered checkpoint 8458 | -7/Garrison | Lost 6 allies 8621 | -7/Garrison | Self-destructed Last Messages --------------- 08439_ YC-7Q4(m) repairs GY-2BY(m). 08443_ Y-54 Guardian destroyed. 08446_ Acquired 18 matter. 08456_ The unstable cave ceiling collapses. 08508_ Discarded Seismic Detector. 08514_ YC-7Q4(m) fits Backup Power III on Cogmind. 08520_ Sfc. Transmogrifier converts Visual Processing Unit into Shield Generator. 08520_ Discarded Shield Generator. 08554_ Sfc. Transmogrifier converts Backup Power III into Hyb. Deuterium Engine. 08554_ Acquired 20 matter. 08612_ Critical hit (Burn: +37). 08612_ Imp. Cryofiber Web destroyed. 08614_ YC-7Q4(m) destroyed. 08614_ Impact Mace follow-up attack on G-50 Soldier. 08614_ G-50 Soldier destroyed. 08617_ Acquired 5 matter. 08619_ Greatsword destroyed. 08621_ Mak. Hover Unit destroyed. Map ----- +----------------------------------------------------+ | ?????????????????????????????????? ?????????????? | | ?????????????????????????????????? ?????????????? | | ?????????????????????????????????? ?????????????? | | ?????????????????????????????????# #????????????? | | ?????????????????????????????????# #????????????? | | ??????????????????????## ##""""## ##???????????? | | ??????????????????????# #???????????? | | ????????????????????? #???????????? | | ????????????????????? #???????????? | | ??????????????????????# ?# ## #???????????? | | ??????????????????????# ## ## ###?????????? | | ??????????????????????" #?????????? | | ??????????????????????" #?????????? | | ??????????????????????" #########?? | | ??????????????????????" % # #?? | | ??????????????????????# ## # %### # ##?? | | ??????????????????????# ## # ### #?? | | ??????????????????????# ####!# #?? | | ??????????????????????# ! %[%%!%% #?? | | ??????????????????????# *%=% ! ###!= #""##?? | | ??????????????????????## ## [# %##?## ##?????? | | ???????????????????????# g## ## #???# #??????? | | ???????????????????????#gg######## #??# #??????? | | ???????????????????????#=g#??????# ##??# #??????? | | ???????????????????????#gg#??????# #???# #????### | | ???????????????????????# @#??????# #???# #????# | | ???????????????????????#m #??????# #???# #????# # | | ??????################## #??????# ############## | | ??? s #??????# # | | ??? #??????# # | | ??????????#################??????############## ^ | | ??????????????????????????????????????????????# # | | ??????????????????????????????????????????????# # | | ??????????????????????????????????????????????# # | | ??????????????????????????????????????????????# # | | ??????????????????????????????????????????????# # | | ??????????????????????????????????????????????# | | ??????????????????????????????????????????????# | | ??????????????????????????????????????????????# | | ??????????????????????????????????????????????#### | | ?????????????????????????????????????????????????? | | ?????????????????????????????????????????????????? | | ?????????????????????????????????????????????????? | | ?????????????????????????????????????????????????? | | ?????????????????????????????????????????????????? | | ?????????????????????????????????????????????????? | | ?????????????????????????????????????????????????? | | ?????????????????????????????????????????????????? | | ?????????????????????????????????????????????????? | | ?????????????????????????????????????????????????? | +----------------------------------------------------+ Best States ------------- Heat Dissipation 61 Energy Generation 21 Energy Capacity 900 Matter Stores 300 Matter Capacity 300 Sight Range 18 Terrain Scan Range 16 Terrain Scan Density 10 Jamming Range 12 Additional Mass Support 9 Base Temperature (-) 150 Armor Coverage 300 Resistance: EM 15 Propulsion Shielding 15 Evasion (%) 55 Recoil Reduction 4 Salvage Targeting 2 Offensive Hacking 10 Defensive Hacking 11 Item Schematics ----------------- None Robot Schematics ------------------ None Fabricated ------------ Nothing Repaired ---------- Assault Rifle | 74% | -10/Materials Studied --------- Assault Rifle | -8/Materials | Hacked Rocket Launcher | -8/Materials | Hacked Alien Tech Used ----------------- None Achievements -------------- None Challenges ------------ None Game ------ Seed BottomlessFactoryExpander Manual? 0 Play Time 01:19:28 Cumulative 408.4 hours Start 2026.06.30 @ 17:48:21 End 2026.06.30 @ 19:07:38 Sessions 1 Manual Loads 0 Difficulty Rogue Special Mode None Game No. 303 Rogue 303 Adventurer 0 Explorer 0 Win Type - Total 9 Types 4/0/3/2/0/0/0/0/0/0 Lore% 76 Gallery% 73 Achievement% 50 Wizard Run 0 Options --------- Layout 2 ASCII 0 Keyboard 1 Movement Vi Keybinds 0 Fullscreen 2 Font 32/SmallcapsGlow Map View 77x44 Zoom Use 0% Tactical HUD 1 Map Filters NONE Filters NONE Steam 1 RUN: e00b812f-f446-495a-99b7-5517b3dc3b39